fUSD/lending_fUSD_20240909
["ID","MTS","AMOUNT","RATE_DAILY","PERIOD"]
[337578065,1725840027624,250.0,0.00012106,2]
[337578066,1725840038873,153.75,0.00012091,2]
[337578067,1725840040270,153.75,0.00012152,2]
[337578068,1725840044151,250.0,0.00012091,2]
[337578069,1725840237793,356.68,0.00010959,2]
[337578070,1725840269742,443.0931,0.00012413,2]
[337578071,1725840368652,276.4,0.00012071,2]
[337578073,1725840570273,-565.74,0.00012513,2]
[337578074,1725840570302,-190.93802845,0.00012671,2]
[337578075,1725840570651,-1432.5253446,0.00012703,2]
[337578076,1725840586133,1000.0,0.00012076,2]
[337578077,1725840617401,250.0,0.00012073,2]
[337578084,1725840632677,-67.4746554,0.00012703,2]
[337578085,1725840632686,-1500.0,0.00012705,2]
[337578086,1725840632696,-1585.13794743,0.00012793,2]
[337578087,1725840632707,-255.5570155,0.00012793,2]
[337578088,1725840632720,-1057.99723707,0.00012793,2]
[337578089,1725840632729,-300.0,0.00012799,2]
[337578090,1725840632739,-4824.6605,0.000128,2]
[337578091,1725840632749,-8098.70647664,0.000128,2]
[337578092,1725840632759,-259.49,0.0001286,2]
[337578093,1725840632768,-259.49,0.0001286,2]
[337578094,1725840632777,-150.99,0.00012869,2]
[337578095,1725840632787,-233.6,0.00012869,2]
[337578096,1725840632796,-150.99,0.00012869,2]
[337578097,1725840632805,-150.0,0.00012869,2]
[337578098,1725840632814,-299.99,0.00012869,2]
[337578099,1725840632824,-1126.84766022,0.00012869,2]
[337578100,1725840632833,-29999.99,0.0001287,2]
[337578101,1725840632843,-3259.1,0.0001287,2]
[337578102,1725840632852,-3612.46,0.0001287,2]
[337578103,1725840632861,-19999.99,0.0001287,2]
[337578104,1725840632870,-257.12,0.0001287,2]
[337578105,1725840632879,-1136.31,0.0001287,2]
[337578106,1725840632889,-10000.0,0.00012877,2]
[337578107,1725840632898,-1500.0,0.00012888,2]
[337578108,1725840632907,-259.49,0.0001289,2]
[337578109,1725840632916,-1500.0,0.00012892,2]
[337578110,1725840632926,-5139.855,0.00012893,2]
[337578111,1725840632935,-1000.0,0.00012893,2]
[337578112,1725840632945,-1563.5613,0.00012893,2]
[337578113,1725840632954,-16759.6521,0.00012893,2]
[337578114,1725840632964,-378.9962,0.00012893,2]
[337578115,1725840632973,-3028.0524,0.00012893,2]
[337578116,1725840632983,-749.80129924,0.00012893,2]
[337578117,1725840632995,-899.999998,0.00012893,2]
[337578118,1725840633006,-1916.06870276,0.00012893,2]
[337578119,1725840633015,-225.2408,0.00012893,2]
[337578120,1725840633024,-475.1075,0.00012893,2]
[337578121,1725840633034,-867.538723,0.000129,2]
[337578122,1725840633044,-43635.4375,0.000129,2]
[337578123,1725840633053,-1000.0,0.000129,2]
[337578124,1725840633063,-159.34471816,0.000129,2]
[337578125,1725840633073,-154.45046497,0.00012912,2]
[337578126,1725840633082,-500.0,0.00012935,2]
[337578127,1725840633092,-500.0,0.00012935,2]
[337578128,1725840633101,-500.0,0.00012935,2]
[337578129,1725840633111,-500.0,0.00012935,2]
[337578130,1725840633121,-500.0,0.00012935,2]
[337578131,1725840633131,-500.0,0.00012935,2]
[337578132,1725840633140,-500.0,0.00012935,2]
[337578133,1725840633150,-500.0,0.00012935,2]
[337578134,1725840633160,-500.0,0.00012935,2]
[337578135,1725840633170,-500.0,0.00012935,2]
[337578136,1725840633180,-164.5191,0.00012935,2]
[337578137,1725840633190,-500.0,0.00012973,2]
[337578138,1725840633199,-500.0,0.00012973,2]
[337578139,1725840633208,-500.0,0.00012973,2]
[337578140,1725840633219,-302.85748797,0.00012973,2]
[337578141,1725840633229,-200.0,0.00012973,2]
[337578142,1725840633238,-151.55,0.0001299,2]
[337578143,1725840633247,-9124.6388105,0.00012993,2]
[337578144,1725840633257,-5343.7299667,0.00012993,2]
[337578145,1725840633267,-12492.1082168,0.00012993,2]
[337578146,1725840633279,-55402.453178,0.00012993,2]
[337578147,1725840633289,-13758.3988252,0.00012993,2]
[337578148,1725840633299,-12232.2890547,0.00012993,2]
[337578149,1725840633310,-10352.5519907,0.00012993,2]
[337578150,1725840633320,-245.79950094,0.00012999,2]
[337578151,1725840633330,-500.0,0.00012999,2]
[337578152,1725840633340,-519.40523966,0.00012999,2]
[337578153,1725840633350,-500.0,0.00012999,2]
[337578154,1725840633361,-500.0,0.00012999,2]
[337578155,1725840633371,-500.0,0.00012999,2]
[337578156,1725840633380,-501.8064285,0.00012999,2]
[337578157,1725840633390,-395.493,0.00012999,2]
[337578158,1725840633400,-42429.83769108,0.00013,2]
[337578159,1725840633410,-80059.27101236,0.00013,2]
[337578160,1725840633422,-5693.984656,0.00013,2]
[337578161,1725840633434,-567.33630983,0.00013,2]
[337578162,1725840633447,-4223.30804722,0.00013,2]
[337578163,1725840633460,-68426.44181183,0.00013,2]
[337578164,1725840633469,-2000.0,0.00013,2]
[337578165,1725840633479,-200.0,0.00013,2]
[337578166,1725840633489,-2000.0,0.00013,2]
[337578167,1725840633498,-200.0,0.00013,2]
[337578168,1725840633508,-200.0,0.00013,2]
[337578169,1725840633518,-2758.47615,0.00013,2]
[337578170,1725840633527,-2758.47614,0.00013,2]
[337578171,1725840633536,-1000.0,0.00013,2]
[337578172,1725840633546,-1000.0,0.00013,2]
[337578173,1725840633555,-1000.0,0.00013,2]
[337578174,1725840633564,-1000.0,0.00013,2]
[337578175,1725840633574,-2000.0,0.00013,2]
[337578176,1725840633583,-200.0,0.00013,2]
[337578177,1725840633592,-8098.70647662,0.00013033,2]
[337578178,1725840633601,-752.34,0.000131,2]
[337578179,1725840633611,-752.34,0.000131,2]
[337578180,1725840633620,-226.0,0.000131,2]
[337578181,1725840633630,-150.0,0.000131,2]
[337578182,1725840633639,-1544.27,0.000131,2]
[337578183,1725840633648,-752.34,0.000131,2]
[337578184,1725840633657,-359.0,0.000131,2]
[337578185,1725840633666,-1000.0,0.000131,2]
[337578186,1725840633676,-2000.0,0.0001313,2]
[337578187,1725840633686,-200.0,0.0001313,2]
[337578188,1725840633696,-2000.0,0.0001313,2]
[337578189,1725840633706,-200.0,0.0001313,2]
[337578190,1725840633716,-200.0,0.0001313,2]
[337578191,1725840633727,-878.09930333,0.0001313,2]
[337578192,1725840633736,-200.0,0.0001313,2]
[337578193,1725840633746,-752.34,0.000132,2]
[337578194,1725840633756,-752.34,0.000132,2]
[337578195,1725840633765,-752.34,0.000132,2]
[337578196,1725840633775,-752.34,0.000132,2]
[337578197,1725840633784,-752.34,0.000132,2]
[337578198,1725840633793,-752.34,0.000132,2]
[337578199,1725840633803,-155.017,0.000132,2]
[337578200,1725840633812,-2000.0,0.00013261,2]
[337578201,1725840633821,-200.0,0.00013261,2]
[337578202,1725840633830,-200.0,0.00013261,2]
[337578203,1725840633839,-200.0,0.00013261,2]
[337578204,1725840633849,-200.0,0.00013261,2]
[337578205,1725840633858,-8098.70647662,0.00013267,2]
[337578206,1725840633868,-557.0,0.00013311,2]
[337578207,1725840633877,-931.0,0.00013311,2]
[337578208,1725840633887,-811.0,0.00013311,2]
[337578209,1725840633896,-150.0,0.00013311,2]
[337578210,1725840633907,-553.0,0.00013315,2]
[337578211,1725840633916,-1900.0,0.00013315,2]
[337578212,1725840633925,-281.633,0.00013315,2]
[337578213,1725840634251,-805.0,0.00013315,2]
[337578214,1725840634262,-1119.0,0.00013315,2]
[337578215,1725840634274,-248.0,0.00013315,2]
[337578216,1725840634285,-3342.0,0.00013315,2]
[337578217,1725840634294,-150.0,0.0001337,2]
[337578218,1725840634303,-150.0,0.0001337,2]
[337578219,1725840634313,-289.07,0.0001337,2]
[337578220,1725840634323,-150.0,0.0001337,2]
[337578221,1725840634333,-150.0,0.0001337,2]
[337578222,1725840634342,-150.0,0.0001337,2]
[337578223,1725840634352,-150.0,0.0001337,2]
[337578224,1725840634361,-150.0,0.0001337,2]
[337578225,1725840634370,-150.0,0.0001337,2]
[337578226,1725840634380,-150.0,0.0001337,2]
[337578227,1725840634390,-150.0,0.0001337,2]
[337578228,1725840634399,-150.0,0.0001337,2]
[337578229,1725840634409,-150.0,0.0001337,2]
[337578230,1725840634418,-150.0,0.0001337,2]
[337578231,1725840634427,-150.0,0.0001337,2]
[337578232,1725840634437,-150.0,0.0001337,2]
[337578233,1725840634446,-150.0,0.0001337,2]
[337578234,1725840634455,-150.0,0.0001337,2]
[337578235,1725840634466,-150.0,0.0001337,2]
[337578236,1725840634476,-150.0,0.0001337,2]
[337578237,1725840634485,-150.0,0.0001337,2]
[337578238,1725840634494,-150.0,0.0001337,2]
[337578239,1725840634503,-1145.0,0.0001337,2]
[337578240,1725840634513,-5858.0,0.0001337,2]
[337578241,1725840634522,-150.0,0.0001337,2]
[337578242,1725840634531,-9307.0,0.0001337,2]
[337578243,1725840634541,-2000.0,0.00013394,2]
[337578244,1725840634550,-200.0,0.00013394,2]
[337578245,1725840634559,-200.0,0.00013394,2]
[337578246,1725840634569,-200.0,0.00013394,2]
[337578247,1725840634578,-200.0,0.00013394,2]
[337578248,1725840634588,-8098.70647662,0.000135,2]
[337578249,1725840634597,-2000.0,0.00013528,2]
[337578250,1725840634607,-200.0,0.00013528,2]
[337578251,1725840634616,-200.0,0.00013528,2]
[337578252,1725840634625,-200.0,0.00013528,2]
[337578253,1725840634634,-150.0,0.00013568,2]
[337578254,1725840634643,-150.0,0.00013568,2]
[337578255,1725840634652,-150.0,0.00013568,2]
[337578256,1725840634661,-1547.0,0.00013568,2]
[337578257,1725840634669,-447.0,0.00013568,2]
[337578258,1725840634678,-1260.0,0.00013568,2]
[337578259,1725840634687,-624.0,0.00013568,2]
[337578260,1725840634696,-276.4,0.0001358,2]
[337578261,1725840634705,-1000.0,0.00013585,2]
[337578262,1725840634715,-154.49,0.00013632,2]
[337578263,1725840634724,-1000.0,0.00013699,2]
[337578264,1725840634733,-630.0,0.00013699,2]
[337578265,1725840634742,-1000.0,0.00013699,2]
[337578266,1725840634751,-1000.0,0.00013699,2]
[337578267,1725840634760,-1000.0,0.00013699,2]
[337578268,1725840634769,-1000.0,0.00013699,2]
[337578269,1725840634779,-1000.0,0.00013699,2]
[337578270,1725840634788,-1000.0,0.00013699,2]
[337578271,1725840634797,-1000.0,0.00013699,2]
[337578272,1725840634806,-615.0,0.00013699,2]
[337578273,1725840634815,-1000.0,0.00013699,2]
[337578274,1725840634824,-1000.0,0.00013699,2]
[337578275,1725840634834,-1000.0,0.00013699,2]
[337578276,1725840634843,-1000.0,0.00013699,2]
[337578277,1725840634852,-1000.0,0.00013699,2]
[337578278,1725840634861,-1000.0,0.00013699,2]
[337578279,1725840634870,-1000.0,0.00013699,2]
[337578280,1725840634879,-1000.0,0.00013699,2]
[337578281,1725840634888,-1000.0,0.00013699,2]
[337578282,1725840634896,-1000.0,0.00013699,2]
[337578283,1725840634905,-1000.0,0.00013699,2]
[337578284,1725840634914,-1000.0,0.00013699,2]
[337578285,1725840634924,-1000.0,0.00013699,2]
[337578286,1725840634933,-1000.0,0.00013699,2]
[337578287,1725840634942,-1000.0,0.00013699,2]
[337578288,1725840634951,-1000.0,0.00013699,2]
[337578289,1725840634960,-1000.0,0.00013699,2]
[337578290,1725840634971,-1000.0,0.00013699,2]
[337578291,1725840634980,-1000.0,0.00013699,2]
[337578292,1725840634990,-1000.0,0.00013699,2]
[337578293,1725840634999,-1000.0,0.00013699,2]
[337578294,1725840635008,-416.05688994,0.00013699,2]
[337578295,1725840635021,-583.94311006,0.00013699,2]
[337578296,1725840635030,-25.92033656,0.00013699,2]
[337578297,1725840635041,-974.07966344,0.00013699,2]
[337578298,1725840635050,-1000.0,0.00013699,2]
[337578299,1725840635059,-944.16391469,0.00013699,2]
[337578300,1725840635074,-55.83608531,0.00013699,2]
[337578301,1725840635083,-259.47107174,0.00013699,2]
[337578302,1725840635094,-740.52892826,0.00013699,2]
[337578303,1725840635103,-1000.0,0.00013699,2]
[337578304,1725840635112,-1000.0,0.00013699,2]
[337578305,1725840635121,-1000.0,0.00013699,2]
[337578306,1725840635130,-1000.0,0.00013699,2]
[337578307,1725840635139,-1000.0,0.00013699,2]
[337578308,1725840635148,-209.47107174,0.00013699,2]
[337578309,1725840635159,-790.52892826,0.00013699,2]
[337578310,1725840635169,-1000.0,0.00013699,2]
[337578311,1725840635178,-609.47107172,0.00013699,2]
[337578316,1725840638166,-1003.50424,0.00012877,2]
[337578317,1725840638178,-255.3477856,0.00012877,2]
[337578318,1725840638189,-1333.88253776,0.00012877,2]
[337578319,1725840638223,-7278.44095798,0.00012877,2]
[337578320,1725840638232,-1079.0,0.0001337,2]
[337578321,1725840638242,-390.52892828,0.00013699,2]
[337578322,1725840638251,-1000.0,0.00013699,2]
[337578323,1725840638260,-1000.0,0.00013699,2]
[337578324,1725840638270,-1000.0,0.00013699,2]
[337578325,1725840638283,-1000.0,0.00013699,2]
[337578326,1725840638292,-1000.0,0.00013699,2]
[337578327,1725840638301,-1000.0,0.00013699,2]
[337578328,1725840638310,-1000.0,0.00013699,2]
[337578329,1725840638320,-1000.0,0.00013699,2]
[337578330,1725840638329,-1000.0,0.00013699,2]
[337578331,1725840638338,-1000.0,0.00013699,2]
[337578332,1725840638348,-1000.0,0.00013699,2]
[337578333,1725840638359,-1000.0,0.00013699,2]
[337578334,1725840638368,-1000.0,0.00013699,2]
[337578335,1725840638377,-1000.0,0.00013699,2]
[337578336,1725840638386,-1000.0,0.00013699,2]
[337578337,1725840638395,-1000.0,0.00013699,2]
[337578338,1725840638404,-223.0,0.00013699,2]
[337578339,1725840638413,-178.12,0.00013699,2]
[337578340,1725840638422,-2751.0,0.00013699,2]
[337578341,1725840638431,-153.37,0.00013699,2]
[337578342,1725840638440,-200.0,0.00013699,2]
[337578343,1725840638450,-181.04,0.00013699,2]
[337578344,1725840638459,-500.0,0.00013699,2]
[337578345,1725840638469,-177.24,0.00013699,2]
[337578346,1725840638478,-380.26011474,0.00013733,2]
[337578347,1725840638489,-835.77,0.00013733,2]
[337578348,1725840638500,-653.67901261,0.00013733,2]
[337578349,1725840638511,-6228.99734927,0.00013733,2]
[337578350,1725840638521,-15407.83689392,0.0001379,2]
[337578351,1725840638530,-181634.808243,0.000138,3]
[337578352,1725840638539,-12108.9872162,0.0001389,3]
[337578353,1725840638549,-155.017,0.00013893,2]
[337578354,1725840638558,-180.14180478,0.000139,3]
[337578355,1725840638569,-8098.70647662,0.00013967,2]
[337578356,1725840638578,-420.0,0.00014039,2]
[337578357,1725840638587,-752.34,0.00014055,2]
[337578358,1725840638596,-752.34,0.00014055,2]
[337578360,1725840638606,-752.34,0.00014055,2]
[337578362,1725840638614,-752.34,0.00014055,2]
[337578364,1725840638623,-752.34,0.00014055,2]
[337578366,1725840638632,-752.34,0.00014055,2]
[337578368,1725840638641,-155.0,0.0001414,2]
[337578370,1725840638650,-150.0,0.00014164,2]
[337578371,1725840638659,-150.0,0.00014164,2]
[337578373,1725840638668,-150.0,0.00014164,2]
[337578375,1725840638678,-150.0,0.00014164,2]
[337578377,1725840638687,-300.0,0.00014164,2]
[337578379,1725840638696,-150.0,0.00014164,2]
[337578381,1725840638705,-714.82,0.00014164,2]
[337578383,1725840638714,-150.0,0.00014164,2]
[337578385,1725840638724,-150.0,0.00014164,2]
[337578387,1725840638734,-150.0,0.00014164,2]
[337578389,1725840638743,-150.0,0.00014164,2]
[337578391,1725840638752,-150.0,0.00014164,2]
[337578393,1725840638762,-150.0,0.00014164,2]
[337578395,1725840638771,-150.0,0.00014164,2]
[337578397,1725840638781,-12108.9872162,0.00014182,3]
[337578399,1725840638790,-150.0,0.00014192,2]
[337578401,1725840638800,-150.0,0.00014192,2]
[337578403,1725840638809,-357.5,0.00014192,2]
[337578405,1725840638818,-150.0,0.00014192,2]
[337578407,1725840638827,-150.0,0.00014192,2]
[337578409,1725840638836,-150.0,0.00014192,2]
[337578411,1725840638846,-150.0,0.00014192,2]
[337578413,1725840638855,-357.5,0.00014192,2]
[337578415,1725840638864,-150.0,0.00014192,2]
[337578417,1725840638873,-150.0,0.00014192,2]
[337578419,1725840638883,-150.0,0.00014192,2]
[337578421,1725840638892,-150.0,0.00014192,2]
[337578423,1725840638901,-150.0,0.00014192,2]
[337578425,1725840638910,-357.5,0.00014192,2]
[337578427,1725840638919,-150.0,0.00014192,2]
[337578429,1725840638928,-150.0,0.00014192,2]
[337578431,1725840638938,-150.0,0.00014192,2]
[337578433,1725840638947,-300.0,0.00014192,2]
[337578435,1725840638956,-150.0,0.00014192,2]
[337578437,1725840638965,-300.0,0.00014192,2]
[337578439,1725840638977,-546.49,0.00014192,2]
[337578441,1725840638986,-150.0,0.00014192,2]
[337578443,1725840638995,-357.5,0.00014192,2]
[337578445,1725840639004,-150.0,0.00014192,2]
[337578447,1725840639014,-150.0,0.00014192,2]
[337578449,1725840639024,-150.0,0.00014192,2]
[337578451,1725840639036,-150.0,0.00014192,2]
[337578453,1725840639046,-150.0,0.00014192,2]
[337578456,1725840639056,-150.0,0.00014192,2]
[337578458,1725840639067,-357.5,0.00014192,2]
[337578460,1725840639076,-150.0,0.00014192,2]
[337578462,1725840639087,-357.5,0.00014192,2]
[337578464,1725840639096,-8098.70647662,0.000142,2]
[337578466,1725840639106,-290.876918,0.00014247,2]
[337578468,1725840639115,-11507.0,0.000143,3]
[337578470,1725840639127,-500.0,0.00014342,2]
[337578472,1725840639137,-167.060522,0.00014381,2]
[337578474,1725840639147,-4055.95,0.000144,2]
[337578476,1725840639157,-12108.9872162,0.00014423,3]
[337578478,1725840639167,-8098.70647662,0.00014433,2]
[337578480,1725840639176,-180.14180478,0.00014435,3]
[337578482,1725840639185,-12108.9872162,0.0001448,3]
[337578484,1725840639195,-12108.9872162,0.0001449,3]
[337578486,1725840639204,-28582.93010403,0.000145,2]
[337578488,1725840639214,-151.0,0.000145,2]
[337578490,1725840639224,-157.40526554,0.000145,2]
[337578492,1725840639234,-150.0,0.000146,2]
[337578494,1725840639243,-181.04,0.00014612,2]
[337578496,1725840639253,-175.64905373,0.00014658,2]
[337578498,1725840639263,-12108.9872162,0.00014658,3]
[337578500,1725840639272,-155.017,0.00014659,2]
[337578502,1725840639283,-8098.70647662,0.00014667,2]
[337578504,1725840639293,-12108.9872162,0.0001467,3]
[337578506,1725840639305,-15507.816422,0.0001468,2]
[337578508,1725840639316,-500.0,0.0001469,2]
[337578510,1725840639325,-3743.90582207,0.0001469,2]
[337578512,1725840639335,-11507.0,0.000147,5]
[337578514,1725840639346,-565.74,0.00014777,2]
[337578516,1725840639355,-11764.63066246,0.0001485,2]
[337578518,1725840639364,-162.1215757,0.0001487,2]
[337578520,1725840639374,-162.12157568,0.00014878,2]
[337578522,1725840639384,-12108.9872162,0.0001488,3]
[337578524,1725840639393,-162.12157568,0.00014885,2]
[337578526,1725840639402,-12108.9872162,0.0001489,3]
[337578528,1725840639412,-320.3975,0.0001489,2]
[337578530,1725840639421,-162.12157568,0.00014893,2]
[337578533,1725840639431,-494.53029836,0.000149,2]
[337578535,1725840639440,-3420.7,0.000149,5]
[337578537,1725840639449,-162.12157568,0.000149,2]
[337578539,1725840639458,-8098.70647662,0.000149,2]
[337578540,1725840639468,-206.7960771,0.000149,2]
[337578542,1725840639477,-14814.36448382,0.000149,2]
[337578544,1725840639487,-159.34471816,0.000149,2]
[337578547,1725840639496,-400.0,0.0001497,2]
[337578549,1725840639505,-400.0,0.0001497,2]
[337578551,1725840639514,-36326.9616485,0.0001497,3]
[337578553,1725840639523,-180.14180478,0.0001497,3]
[337578555,1725840639533,-500.0,0.00014973,2]
[337578557,1725840639542,-500.0,0.00014973,2]
[337578559,1725840639551,-500.0,0.00014973,2]
[337578561,1725840639560,-180.14180478,0.0001498,3]
[337578563,1725840639569,-198.189014,0.0001498,2]
[337578565,1725840639579,-198.189014,0.0001498,2]
[337578567,1725840639588,-180.14180478,0.0001498,3]
[337578569,1725840639597,-151.0,0.0001499,2]
[337578571,1725840639607,-294.737007,0.0001499,2]
[337578572,1725840639615,-154.182139,0.0001499,2]
[337578574,1725840639624,-151.0,0.0001499,2]
[337578576,1725840639634,-151.0,0.0001499,2]
[337578578,1725840639643,-151.967461,0.0001499,2]
[337578580,1725840639652,-221.319207,0.0001499,2]
[337578582,1725840639661,-221.319207,0.0001499,2]
[337578584,1725840639670,-151.0,0.0001499,2]
[337578586,1725840639679,-151.0,0.0001499,2]
[337578588,1725840639689,-151.0,0.0001499,2]
[337578590,1725840639697,-151.0,0.0001499,2]
[337578592,1725840639707,-151.0,0.0001499,2]
[337578594,1725840639716,-151.0,0.0001499,2]
[337578596,1725840639726,-151.0,0.0001499,2]
[337578598,1725840639736,-151.0,0.0001499,2]
[337578600,1725840639746,-151.0,0.0001499,2]
[337578602,1725840639755,-151.0,0.0001499,2]
[337578604,1725840639764,-151.0,0.0001499,2]
[337578606,1725840639774,-151.0,0.0001499,2]
[337578608,1725840639783,-151.0,0.0001499,2]
[337578610,1725840639793,-151.0,0.0001499,2]
[337578612,1725840639802,-151.0,0.0001499,2]
[337578614,1725840639811,-152.280587,0.0001499,2]
[337578616,1725840639820,-151.281849,0.0001499,2]
[337578618,1725840639829,-187.419273,0.0001499,2]
[337578620,1725840639839,-187.419273,0.0001499,2]
[337578622,1725840639848,-258.333625,0.0001499,2]
[337578624,1725840639857,-258.333625,0.0001499,2]
[337578626,1725840639866,-151.245475,0.0001499,2]
[337578628,1725840639875,-151.0,0.0001499,2]
[337578630,1725840639884,-151.0,0.0001499,2]
[337578632,1725840639893,-151.0,0.0001499,2]
[337578634,1725840639902,-151.0,0.0001499,2]
[337578636,1725840639912,-151.0,0.0001499,2]
[337578637,1725840639922,-151.0,0.0001499,2]
[337578638,1725840639933,-222.038472,0.0001499,2]
[337578639,1725840639943,-222.038472,0.0001499,2]
[337578640,1725840639952,-151.0,0.0001499,2]
[337578642,1725840639962,-796.814857,0.0001499,2]
[337578643,1725840639972,-796.814857,0.0001499,2]
[337578644,1725840639982,-151.612075,0.0001499,2]
[337578645,1725840639991,-151.0,0.0001499,2]
[337578646,1725840640000,-218.833419,0.0001499,2]
[337578647,1725840640010,-151.0,0.0001499,2]
[337578649,1725840640019,-151.0,0.0001499,2]
[337578651,1725840640028,-268.999622,0.0001499,2]
[337578653,1725840640038,-268.999622,0.0001499,2]
[337578654,1725840640047,-151.0,0.0001499,2]
[337578655,1725840640056,-151.0,0.0001499,2]
[337578656,1725840640065,-151.0,0.0001499,2]
[337578658,1725840640074,-151.0,0.0001499,2]
[337578660,1725840640083,-151.822337,0.0001499,2]
[337578662,1725840640093,-151.0,0.0001499,2]
[337578663,1725840640102,-151.0,0.0001499,2]
[337578665,1725840640112,-151.0,0.0001499,2]
[337578667,1725840640121,-151.0,0.0001499,2]
[337578669,1725840640131,-151.0,0.0001499,2]
[337578671,1725840640140,-151.0,0.0001499,2]
[337578673,1725840640150,-151.0,0.0001499,2]
[337578675,1725840640159,-151.0,0.0001499,2]
[337578678,1725840640168,-151.0,0.0001499,2]
[337578680,1725840640177,-151.0,0.0001499,2]
[337578682,1725840640186,-151.0,0.0001499,2]
[337578684,1725840640195,-151.0,0.0001499,2]
[337578686,1725840640204,-8438.7718556,0.0001499,2]
[337578688,1725840640214,-7752.9049007,0.0001499,2]
[337578690,1725840640223,-7067.0379457,0.0001499,2]
[337578692,1725840640233,-151.0,0.0001499,2]
[337578694,1725840640243,-151.0,0.0001499,2]
[337578696,1725840640253,-151.0,0.0001499,2]
[337578698,1725840640263,-151.0,0.0001499,2]
[337578700,1725840640273,-493.061685,0.0001499,2]
[337578702,1725840640283,-493.061685,0.0001499,2]
[337578704,1725840640294,-151.0,0.0001499,2]
[337578706,1725840640310,-151.0,0.0001499,2]
[337578708,1725840640320,-151.0,0.0001499,2]
[337578710,1725840640329,-151.0,0.0001499,2]
[337578712,1725840640339,-151.0,0.0001499,2]
[337578714,1725840640349,-151.0,0.0001499,2]
[337578716,1725840640358,-151.0,0.0001499,2]
[337578718,1725840640368,-4946.2998383,0.0001499,2]
[337578720,1725840640378,-4548.8697099,0.0001499,2]
[337578722,1725840640388,-4151.4395815,0.0001499,2]
[337578724,1725840640398,-11553.1204496,0.0001499,2]
[337578726,1725840640407,-10614.1326823,0.0001499,2]
[337578728,1725840640417,-9675.1449151,0.0001499,2]
[337578730,1725840640426,-240.559764,0.0001499,2]
[337578732,1725840640436,-51238.0459454,0.0001499,2]
[337578734,1725840640446,-47073.6387129,0.0001499,2]
[337578736,1725840640456,-42909.2314803,0.0001499,2]
[337578738,1725840640465,-2468.499819,0.0001499,2]
[337578740,1725840640476,-164.245124,0.0001499,2]
[337578742,1725840640486,-151.0,0.0001499,2]
[337578744,1725840640496,-164.245124,0.0001499,2]
[337578746,1725840640505,-2468.499819,0.0001499,2]
[337578748,1725840640515,-151.0,0.0001499,2]
[337578750,1725840640525,-161.386547,0.0001499,2]
[337578752,1725840640534,-151.0,0.0001499,2]
[337578754,1725840640544,-151.0,0.0001499,2]
[337578756,1725840640553,-161.386547,0.0001499,2]
[337578758,1725840640562,-151.0,0.0001499,2]
[337578760,1725840640572,-151.0,0.0001499,2]
[337578762,1725840640581,-151.0,0.0001499,2]
[337578764,1725840640591,-12724.2284538,0.0001499,2]
[337578766,1725840640602,-11690.0580825,0.0001499,2]
[337578768,1725840640612,-10655.8877112,0.0001499,2]
[337578770,1725840640622,-151.0,0.0001499,2]
[337578772,1725840640631,-151.0,0.0001499,2]
[337578774,1725840640641,-546.993716,0.0001499,2]
[337578776,1725840640651,-151.0,0.0001499,2]
[337578778,1725840640661,-3836.325777,0.0001499,2]
[337578780,1725840640672,-546.993716,0.0001499,2]